bitfinex/quotes_BTCUSD_20230111
["timestamp","ask_amount","ask_price","bid_price","bid_amount"]
[1673464441034,0.01639735,17513.0,17512.0,2.91570781]
[1673464441538,0.01639735,17513.0,17512.0,2.34315881]
[1673464441788,0.01639735,17513.0,17512.0,1.66332181]
[1673464442068,0.01639735,17513.0,17512.0,2.21184519]
[1673464442303,0.01639735,17513.0,17512.0,2.51184519]
[1673464442560,0.01639735,17513.0,17512.0,2.37284519]
[1673464442833,0.01739735,17513.0,17512.0,2.237688]
[1673464443081,0.01639735,17513.0,17512.0,2.098688]
[1673464443379,0.01739735,17513.0,17512.0,2.237688]
[1673464443841,0.01739735,17513.0,17512.0,3.17099866]
[1673464445904,0.01739735,17513.0,17512.0,2.454488]
[1673464446386,0.01739735,17513.0,17512.0,2.44109473]
[1673464447217,0.01739735,17513.0,17512.0,2.44115473]
[1673464447430,0.00529735,17513.0,17512.0,2.44115473]
[1673464447682,0.00529735,17513.0,17512.0,2.454548]
[1673464448715,0.001,17513.0,17512.0,2.454548]
[1673464450194,0.001,17513.0,17512.0,3.11476756]
[1673464451692,0.001,17513.0,17512.0,3.41504204]
[1673464451950,0.001,17513.0,17512.0,2.89824204]
[1673464452192,0.001,17513.0,17512.0,2.89818204]
[1673464452442,0.001,17513.0,17512.0,2.59818204]
[1673464453194,0.54526149,17514.0,17512.0,2.45918204]
[1673464453486,0.54526149,17514.0,17512.0,2.10256804]
[1673464453729,0.25204,17513.0,17512.0,1.09949404]
[1673464453973,0.87014527,17513.0,17512.0,0.139]
[1673464454217,0.002,17513.0,17512.0,0.139]
[1673464454480,0.57036732,17514.0,17511.0,0.32092853]
[1673464454797,0.002,17513.0,17512.0,0.139]
[1673464454981,0.002,17513.0,17511.0,0.32092853]
[1673464454983,0.25204,17513.0,17511.0,0.32092853]
[1673464455229,0.81766802,17513.0,17512.0,0.139]
[1673464455743,0.92246802,17513.0,17511.0,0.00013588]
[1673464456031,0.3,17512.0,17511.0,0.13913588]
[1673464456266,0.3,17512.0,17511.0,0.00013588]
[1673464456787,1.442074,17512.0,17511.0,0.00013588]
[1673464457560,1.442074,17512.0,17511.0,0.05413588]
[1673464458089,2.00059071,17512.0,17511.0,0.05913588]
[1673464459124,1.42955371,17512.0,17511.0,0.05913588]
[1673464459375,2.00059071,17512.0,17511.0,0.05913588]
[1673464459620,1.53725371,17512.0,17511.0,0.05913588]
[1673464460191,0.96621671,17512.0,17511.0,0.05913588]
[1673464460415,0.85851671,17512.0,17511.0,0.05913588]
[1673464460950,1.42955371,17512.0,17511.0,0.05913588]
[1673464461472,2.00059071,17512.0,17511.0,0.05913588]
[1673464462002,1.581374,17512.0,17511.0,0.05913588]
[1673464462256,2.14796531,17512.0,17511.0,0.05913588]
[1673464462803,1.581374,17512.0,17511.0,0.05913588]
[1673464463064,2.30633723,17512.0,17511.0,0.05913588]
[1673464463303,2.30633723,17512.0,17511.0,0.05907588]
[1673464464271,1.581374,17512.0,17511.0,0.05907588]
[1673464464527,2.24523641,17512.0,17511.0,0.05907588]
[1673464464769,2.81627341,17512.0,17511.0,0.05907588]
[1673464465264,2.24523641,17512.0,17511.0,0.05907588]
[1673464466788,1.581374,17512.0,17511.0,0.05907588]
[1673464467043,2.68562927,17512.0,17511.0,0.05907588]
[1673464467512,2.11359227,17512.0,17511.0,0.05907588]
[1673464468772,2.11359227,17512.0,17511.0,2.00996077]
[1673464468773,0.031,17512.0,17511.0,2.00996077]
[1673464469019,0.031,17512.0,17511.0,2.37520518]
[1673464469268,0.01904271,17514.0,17511.0,2.429751]
[1673464469526,0.01904271,17514.0,17512.0,0.657544]
[1673464469778,0.01904271,17514.0,17513.0,1.499552]
[1673464471297,0.01904271,17514.0,17513.0,1.509552]
[1673464474605,0.01904271,17514.0,17513.0,1.509612]
[1673464475341,0.01904271,17514.0,17513.0,1.152068]
[1673464475835,0.84676111,17514.0,17513.0,0.01006]
[1673464476085,0.62774008,17514.0,17513.0,0.01006]
[1673464476333,1.19871108,17514.0,17513.0,0.01006]
[1673464476591,1.76968208,17514.0,17513.0,0.01006]
[1673464476836,2.06968208,17514.0,17513.0,0.01006]
[1673464477327,1.76468208,17514.0,17513.0,0.01006]
[1673464479733,1.87258208,17514.0,17513.0,0.01]
[1673464480553,1.19371108,17514.0,17513.0,0.01]
[1673464481059,0.62274008,17514.0,17513.0,0.01]
[1673464481664,0.01404271,17514.0,17513.0,0.01]
[1673464481932,0.01404271,17514.0,17513.0,0.30715206]
[1673464483446,0.01404271,17514.0,17513.0,0.01]
[1673464485418,0.26562271,17514.0,17513.0,0.01]
[1673464486411,0.01404271,17514.0,17513.0,0.0101461]
[1673464487168,0.26562271,17514.0,17513.0,0.01]
[1673464487418,0.87383885,17514.0,17513.0,0.01]
[1673464488717,2.01578085,17514.0,17513.0,0.01]
[1673464489953,1.44480985,17514.0,17513.0,0.01]
[1673464490219,0.62225885,17514.0,17513.0,0.01]
[1673464490711,0.62174885,17514.0,17513.0,0.01]
[1673464491220,1.19271985,17514.0,17513.0,0.01]
[1673464491474,1.76369085,17514.0,17513.0,0.01]
[1673464491726,2.04218494,17514.0,17513.0,0.01]
[1673464491984,2.29838383,17514.0,17513.0,0.01]
[1673464492233,2.59838383,17514.0,17513.0,0.01]
[1673464492722,2.33177217,17514.0,17513.0,0.01]
[1673464492978,2.16097808,17514.0,17513.0,0.01]
[1673464493269,3.26897393,17514.0,17513.0,0.01]
[1673464493510,3.09669999,17514.0,17513.0,0.01]
[1673464494516,2.86389551,17514.0,17513.0,0.01]
[1673464494754,3.16389551,17514.0,17513.0,0.01]
[1673464495268,3.16979711,17514.0,17513.0,0.01]
[1673464496020,3.59670824,17514.0,17513.0,0.01]
[1673464496272,3.19316984,17514.0,17511.0,6e-05]
[1673464496519,0.2176,17512.0,17511.0,6e-05]
[1673464496777,0.5176,17512.0,17511.0,6e-05]
[1673464497009,1.7292262,17512.0,17511.0,6e-05]
[1673464497259,2.3002632,17512.0,17511.0,6e-05]
[1673464497516,2.47101841,17512.0,17511.0,6e-05]
[1673464497785,2.3172632,17512.0,17511.0,6e-05]
[1673464498794,2.48801841,17512.0,17511.0,6e-05]
[1673464499555,3.05905541,17512.0,17511.0,6e-05]
[1673464499794,3.02376148,17512.0,17511.0,6e-05]
[1673464500046,3.27989429,17512.0,17511.0,6e-05]
[1673464500294,2.67459902,17512.0,17511.0,6e-05]
[1673464500658,3.36338018,17512.0,17511.0,6e-05]
[1673464500819,3.14435915,17512.0,17511.0,6e-05]
[1673464501057,2.8453978,17512.0,17511.0,6e-05]
[1673464501311,2.8435998,17512.0,17511.0,6e-05]
[1673464501564,3.01433713,17512.0,17511.0,6e-05]
[1673464501825,3.12557118,17512.0,17511.0,6e-05]
[1673464502076,3.12857118,17512.0,17511.0,0.00706]
[1673464502323,3.12857118,17512.0,17511.0,6e-05]
[1673464502324,3.12557118,17512.0,17511.0,6e-05]
[1673464502582,3.19657118,17512.0,17511.0,0.00606]
[1673464503312,3.06833713,17512.0,17511.0,0.00606]
[1673464503562,3.49658569,17512.0,17511.0,0.00606]
[1673464503822,3.19658569,17512.0,17511.0,0.00606]
[1673464504350,3.19658569,17512.0,17511.0,0.00606]
[1673464504625,3.76186459,17512.0,17511.0,0.00606]
[1673464504844,3.06833713,17512.0,17511.0,0.00606]
[1673464505097,2.85490097,17512.0,17511.0,0.00606]
[1673464505338,3.552451,17512.0,17511.0,0.00606]
[1673464505858,3.15490097,17512.0,17511.0,0.00606]
[1673464506602,3.49800097,17512.0,17511.0,0.00606]
[1673464506929,3.07958984,17512.0,17511.0,0.006]
[1673464507628,3.29658984,17512.0,17511.0,0.006]
[1673464507914,4.78549843,17512.0,17511.0,0.006]
[1673464508214,0.00182895,17510.0,17507.0,0.00255051]
[1673464508439,0.17071142,17508.0,17507.0,0.00255051]
[1673464508696,2.40081242,17508.0,17507.0,0.00255051]
[1673464508966,2.230101,17508.0,17507.0,0.00255051]
[1673464509221,2.230101,17508.0,17507.0,0.00355051]
[1673464509482,2.230101,17508.0,17507.0,0.00255051]
[1673464509732,0.045,17508.0,17507.0,0.00355051]
[1673464509987,0.045,17508.0,17507.0,0.00255051]
[1673464510227,0.09,17508.0,17507.0,0.00355051]
[1673464510473,0.08,17508.0,17507.0,0.00355051]
[1673464512214,0.08,17508.0,17507.0,0.00425051]
[1673464512723,0.651167,17508.0,17507.0,0.00419051]
[1673464519011,0.08,17508.0,17507.0,0.00419051]
[1673464520013,0.08,17508.0,17507.0,0.30063509]
[1673464522487,0.89208759,17508.0,17507.0,0.00419051]
[1673464522995,1.46325459,17508.0,17507.0,0.00419051]
[1673464523556,1.46319459,17508.0,17507.0,0.00419051]
[1673464524588,2.03436159,17508.0,17507.0,0.00419051]
[1673464524850,2.48125242,17508.0,17507.0,0.00419051]
[1673464525093,3.12890399,17508.0,17507.0,0.00419051]
[1673464525391,2.48125242,17508.0,17507.0,0.00419051]
[1673464525631,2.73731954,17508.0,17507.0,0.00419051]
[1673464525891,3.20803095,17508.0,17507.0,0.00419051]
[1673464526347,2.95196383,17508.0,17507.0,0.00419051]
[1673464526349,3.37874237,17508.0,17507.0,0.00419051]
[1673464526857,3.63487026,17508.0,17507.0,0.00419051]
[1673464527107,3.43689276,17508.0,17507.0,0.00419051]
[1673464527356,3.26621578,17508.0,17507.0,0.00419051]
[1673464527622,3.43689276,17508.0,17507.0,0.00419051]
[1673464527859,2.90808845,17508.0,17507.0,0.00419051]
[1673464528103,3.26992986,17508.0,17507.0,0.00419051]
[1673464528601,3.05282986,17508.0,17507.0,0.00419051]
[1673464528862,2.79670524,17508.0,17507.0,0.00419051]
[1673464529599,3.05282986,17508.0,17507.0,0.00419051]
[1673464532165,3.39436316,17508.0,17507.0,0.00419051]
[1673464532448,3.05294033,17508.0,17507.0,0.00419051]
[1673464533645,3.25167689,17508.0,17507.0,0.00419051]
[1673464533887,3.08116796,17508.0,17507.0,0.00419051]
[1673464534130,3.25167689,17508.0,17507.0,0.00419051]
[1673464535362,3.380562,17508.0,17507.0,0.00419051]
[1673464535610,3.03913917,17508.0,17507.0,0.00419051]
[1673464535856,3.93301474,17508.0,17507.0,0.00419051]
[1673464536102,3.49101619,17508.0,17507.0,0.00419051]
[1673464536610,3.83287375,17508.0,17507.0,0.00419051]
[1673464536851,3.59254322,17508.0,17507.0,0.00419051]
[1673464537103,3.72554007,17508.0,17507.0,0.00419051]
[1673464537353,3.42214905,17508.0,17507.0,0.00419051]
[1673464537603,3.59254322,17508.0,17507.0,0.00419051]
[1673464537840,2.85105398,17508.0,17507.0,0.00419051]
[1673464539653,2.00060603,17508.0,17507.0,0.2418684]
[1673464539916,2.00060603,17508.0,17507.0,0.00419051]
[1673464539917,0.87298273,17508.0,17507.0,0.00419051]
[1673464540433,0.70201192,17508.0,17507.0,0.00419051]
[1673464541240,0.10813635,17508.0,17507.0,0.00419051]
[1673464541482,0.10813635,17508.0,17507.0,0.26389159]
[1673464546182,0.27910716,17508.0,17507.0,0.00419051]
[1673464546429,0.93393872,17508.0,17507.0,0.00419051]
[1673464548141,0.10813635,17508.0,17507.0,0.00419051]
[1673464548391,0.10813635,17508.0,17507.0,0.25491559]
[1673464549930,0.10813635,17508.0,17507.0,0.82611559]
[1673464550434,0.10813635,17508.0,17507.0,1.39731559]
[1673464551193,0.10813635,17508.0,17507.0,1.92479934]
[1673464551966,0.10813635,17508.0,17507.0,2.1801343]
[1673464552222,0.10806159,17508.0,17507.0,4.83034872]
[1673464552490,0.10806159,17508.0,17507.0,4.48571115]
[1673464552735,0.10806159,17508.0,17507.0,5.79760069]
[1673464553244,0.10806159,17508.0,17507.0,5.02142772]
[1673464553502,0.10806159,17508.0,17507.0,3.53967443]
[1673464553825,0.10806159,17508.0,17507.0,2.59099466]
[1673464554788,0.10806159,17508.0,17507.0,2.01979466]
[1673464555030,0.10806159,17508.0,17507.0,1.74120782]
[1673464555536,0.10806159,17508.0,17507.0,1.38366382]
[1673464556518,0.10806159,17508.0,17507.0,1.74120782]
[1673464557281,0.10806159,17508.0,17507.0,1.91179466]
[1673464557525,0.10806159,17508.0,17507.0,2.65472135]
[1673464557789,0.10806159,17508.0,17507.0,2.91059265]
[1673464558281,0.10806159,17508.0,17507.0,4.61575334]
[1673464558775,0.00182895,17510.0,17508.0,0.40529795]
[1673464559028,0.00182895,17510.0,17509.0,1.67021644]
[1673464559271,0.00182895,17510.0,17509.0,1.88751644]
[1673464559524,0.00182895,17510.0,17509.0,2.94985044]
[1673464559782,0.00182895,17510.0,17509.0,3.05203751]
[1673464560277,0.01982895,17510.0,17509.0,3.05203751]
[1673464560521,0.00182895,17510.0,17509.0,2.75203751]
[1673464561022,0.00382895,17510.0,17509.0,2.75203751]
[1673464561264,0.00582895,17510.0,17509.0,2.89003751]
[1673464562253,0.00582895,17510.0,17509.0,2.617446]
[1673464562793,0.00582895,17510.0,17509.0,2.917446]
[1673464563032,0.00582895,17510.0,17509.0,3.19817997]
[1673464564053,0.00582895,17510.0,17509.0,3.73318978]
[1673464564310,0.00582895,17510.0,17509.0,3.90359422]
[1673464565058,0.00582895,17510.0,17509.0,4.83580105]
[1673464565293,0.00582895,17510.0,17509.0,4.15920088]
[1673464565555,0.00582895,17510.0,17509.0,4.83585621]
[1673464565806,0.00582895,17510.0,17509.0,3.90359422]
[1673464566066,0.00582895,17510.0,17509.0,4.15920088]
[1673464566346,0.00582895,17510.0,17509.0,3.90359422]
[1673464567079,0.00582895,17510.0,17509.0,3.19665044]
[1673464567336,0.00582895,17510.0,17509.0,3.026246]
[1673464567603,0.00582895,17510.0,17509.0,3.19665044]
[1673464567856,0.00582895,17510.0,17509.0,3.026246]
[1673464568090,0.00582895,17510.0,17509.0,3.19665044]
[1673464569342,0.004,17510.0,17509.0,4.83538287]
[1673464569598,2.6384,17513.0,17510.0,0.00246628]
[1673464569844,0.01353271,17514.0,17512.0,0.1078]
[1673464570096,0.01353271,17514.0,17513.0,1.499552]
[1673464570343,0.01353271,17514.0,17513.0,1.45016847]
[1673464571612,0.01353271,17514.0,17513.0,1.55806847]
[1673464571850,0.01353271,17514.0,17513.0,1.91561247]
[1673464572092,0.02053271,17514.0,17513.0,2.01561247]
[1673464572358,0.02053271,17514.0,17513.0,2.22907247]
[1673464573591,0.01553271,17514.0,17513.0,2.22907247]
[1673464573837,0.01553271,17514.0,17513.0,2.58661647]
[1673464576600,0.00673271,17514.0,17513.0,2.58731647]
[1673464576846,0.00673271,17514.0,17513.0,2.78731647]
[1673464577343,0.00673271,17514.0,17513.0,3.08731647]
[1673464578347,0.00673271,17514.0,17513.0,2.779156]
[1673464578589,0.00673271,17514.0,17513.0,3.08828529]
[1673464579586,0.00673271,17514.0,17513.0,2.779156]
[1673464579831,0.00673271,17514.0,17513.0,3.01909626]
[1673464580099,0.00673271,17514.0,17513.0,2.51909626]
[1673464580631,0.00673271,17514.0,17513.0,2.16155226]
[1673464581878,0.00673271,17514.0,17513.0,2.51909626]
[1673464582383,0.00673271,17514.0,17513.0,2.16155226]
[1673464583114,0.00673271,17514.0,17513.0,2.51909626]
[1673464583363,0.00673271,17514.0,17513.0,2.41119626]
[1673464585855,0.00673271,17514.0,17513.0,2.05365226]
[1673464586356,0.00673271,17514.0,17513.0,2.41119626]
[1673464587907,0.00673271,17514.0,17513.0,3.01119626]
[1673464589181,0.00673271,17514.0,17513.0,2.71119626]
[1673464590719,0.00673271,17514.0,17513.0,2.44019226]
[1673464590974,0.00673271,17514.0,17513.0,2.61015259]
[1673464591558,0.00673271,17514.0,17513.0,2.90428626]
[1673464591760,0.02065389,17515.0,17514.0,0.55754834]
[1673464591991,0.02065389,17515.0,17514.0,2.05703434]
[1673464592233,0.01565389,17515.0,17514.0,2.05703434]
[1673464593062,0.02165389,17515.0,17514.0,2.14103434]
[1673464593312,0.02165389,17515.0,17514.0,2.71200534]
[1673464594571,0.02165389,17515.0,17514.0,2.41206534]
[1673464594815,0.02165389,17515.0,17514.0,2.05452134]
[1673464596063,0.02165389,17515.0,17514.0,2.35452134]
[1673464596309,0.02165389,17515.0,17514.0,2.71206534]
[1673464596553,0.02165389,17515.0,17514.0,3.01206534]
[1673464596815,0.02165389,17515.0,17514.0,3.18202567]
[1673464597821,0.02165389,17515.0,17514.0,2.58202567]
[1673464598062,0.02165389,17515.0,17514.0,2.05452134]
[1673464598559,0.02165389,17515.0,17514.0,2.05352134]
[1673464598865,0.02165389,17515.0,17514.0,2.22348167]
[1673464599168,0.02165389,17515.0,17514.0,2.58102567]
[1673464599390,0.02165389,17515.0,17514.0,2.41106534]
[1673464599638,0.02165389,17515.0,17514.0,2.05352134]
[1673464599890,0.02165389,17515.0,17514.0,2.22348167]
[1673464600140,0.02165389,17515.0,17514.0,2.58102567]
[1673464600391,0.77076072,17515.0,17514.0,0.08919078]
[1673464600653,0.55173969,17515.0,17514.0,0.08919078]
[1673464600893,0.55173969,17515.0,17514.0,0.08913078]
[1673464601634,1.12267869,17515.0,17514.0,0.08913078]
[1673464601879,0.55173969,17515.0,17514.0,0.08913078]
[1673464608902,0.55167969,17515.0,17514.0,0.08913078]
[1673464610403,0.53957969,17515.0,17514.0,0.08913078]
[1673464610919,0.52457969,17515.0,17514.0,0.08913078]
[1673464611937,0.55435058,17516.0,17514.0,1.52283958]
[1673464611938,0.18959428,17516.0,17514.0,1.52283958]
[1673464612179,0.01862347,17516.0,17514.0,2.2304778]
[1673464612417,0.01862347,17516.0,17514.0,2.24840657]
[1673464613432,0.01862347,17516.0,17515.0,0.357544]
[1673464613691,0.01862347,17516.0,17515.0,0.570939]
[1673464613949,0.02462347,17516.0,17515.0,0.570939]
[1673464614189,0.73268614,17516.0,17515.0,1.141878]
[1673464614689,0.72668614,17516.0,17515.0,1.141878]
[1673464614944,0.72668614,17516.0,17515.0,1.154878]
[1673464616198,0.01862347,17516.0,17515.0,1.154878]
[1673464618981,0.01862347,17516.0,17515.0,1.154938]
[1673464619493,0.01862347,17516.0,17515.0,1.42036541]
[1673464619739,0.01862347,17516.0,17515.0,2.55831968]
[1673464620001,0.01862347,17516.0,17515.0,3.0744154]
[1673464620264,0.01862347,17516.0,17515.0,3.74321358]
[1673464621298,0.01862347,17516.0,17515.0,3.47778617]
[1673464621550,0.01862347,17516.0,17515.0,3.90784244]
[1673464622595,0.01862347,17516.0,17515.0,3.77859238]
[1673464622847,0.01862347,17516.0,17515.0,3.43778351]
[1673464623113,0.01862347,17516.0,17515.0,2.15583467]
[1673464623868,0.01862347,17516.0,17515.0,2.76898533]
[1673464624124,0.01862347,17516.0,17515.0,2.76892533]
[1673464624392,0.01862347,17516.0,17515.0,3.43759293]
[1673464624654,0.01862347,17516.0,17515.0,3.43752921]
[1673464624896,0.01862347,17516.0,17515.0,2.51346475]
[1673464625407,0.01862347,17516.0,17515.0,2.76907141]
[1673464625667,0.01862347,17516.0,17515.0,3.43551874]
[1673464625931,0.01862347,17516.0,17515.0,3.43551969]
[1673464626161,0.01862347,17516.0,17515.0,3.77631196]
[1673464626417,0.01862347,17516.0,17515.0,5.73223064]
[1673464626679,0.01862347,17516.0,17515.0,6.38259258]
[1673464626987,0.01862347,17516.0,17515.0,6.38259935]
[1673464627425,0.01862347,17516.0,17515.0,6.07289452]
[1673464627690,0.01862347,17516.0,17515.0,6.33194813]
[1673464627945,0.01862347,17516.0,17515.0,5.73167768]
[1673464628721,0.01862347,17516.0,17515.0,5.36721117]
[1673464628979,0.01862347,17516.0,17515.0,6.07270079]
[1673464629229,0.01862347,17516.0,17515.0,5.67798521]
[1673464629523,0.01862347,17516.0,17515.0,5.36721117]
[1673464629752,0.01862347,17516.0,17515.0,4.33076138]
[1673464630499,0.01862347,17516.0,17515.0,3.86019373]
[1673464632081,0.01862347,17516.0,17515.0,4.16019373]
[1673464632294,0.01862347,17516.0,17515.0,3.86019373]
[1673464632798,0.01855637,17516.0,17515.0,4.16019373]
[1673464633059,0.01855637,17516.0,17515.0,3.88524695]
[1673464633362,0.01855637,17516.0,17515.0,4.0558146]
[1673464633591,0.01855637,17516.0,17515.0,4.3875743]
[1673464633818,0.01855637,17516.0,17515.0,4.0558146]
[1673464634330,0.01855637,17516.0,17515.0,5.90335815]
[1673464634577,0.02200246,17517.0,17516.0,0.5904273]
[1673464634836,0.02200246,17517.0,17516.0,3.48249595]
[1673464635343,0.02200246,17517.0,17516.0,5.66999543]
[1673464635598,0.02200246,17517.0,17516.0,5.61243623]
[1673464635881,0.08000246,17517.0,17516.0,5.38406984]
[1673464636140,0.08000246,17517.0,17516.0,4.95851158]
[1673464636373,0.08000246,17517.0,17516.0,5.72575156]
[1673464636616,0.08000246,17517.0,17516.0,5.38473681]
[1673464636872,0.08000246,17517.0,17516.0,5.72559535]
[1673464637117,0.08000246,17517.0,17516.0,5.72558756]
[1673464637415,0.08000246,17517.0,17516.0,4.4134174]
[1673464637901,0.08000246,17517.0,17516.0,4.66982675]
[1673464638166,0.08000246,17517.0,17516.0,3.70793162]
[1673464638406,0.08000246,17517.0,17516.0,3.53752573]
[1673464638648,0.08000246,17517.0,17516.0,3.79703545]
[1673464638908,0.08000246,17517.0,17516.0,2.91318717]
[1673464639151,0.08000246,17517.0,17516.0,2.6575982]
[1673464639648,0.08000246,17517.0,17516.0,2.91324717]
[1673464639883,0.08000246,17517.0,17516.0,3.55304103]
[1673464640621,0.08000246,17517.0,17516.0,3.55107688]
[1673464640875,0.08000246,17517.0,17516.0,4.1671868]
[1673464641127,0.08000246,17517.0,17516.0,5.84123047]
[1673464641376,0.02226913,17518.0,17517.0,0.34169591]
[1673464641628,0.02226913,17518.0,17517.0,6.17666324]
[1673464641890,0.02226913,17518.0,17517.0,5.83599212]
[1673464642616,0.02226913,17518.0,17517.0,6.77041016]
[1673464642868,0.02226913,17518.0,17517.0,6.42993979]
[1673464643370,0.02226913,17518.0,17517.0,5.89530089]
[1673464643613,0.02226913,17518.0,17517.0,6.32087184]
[1673464643881,0.02326913,17518.0,17517.0,6.03430089]
[1673464644130,0.02226913,17518.0,17517.0,5.89530089]
[1673464644383,0.02226913,17518.0,17517.0,6.14100089]
[1673464644631,0.02326913,17518.0,17517.0,6.14100089]
[1673464644883,0.02326913,17518.0,17517.0,6.19065871]
[1673464645139,0.02326913,17518.0,17517.0,6.19080478]
[1673464645387,0.02326913,17518.0,17517.0,6.99927438]
[1673464645640,0.02326913,17518.0,17517.0,7.62062857]
[1673464645908,0.02326913,17518.0,17517.0,7.62232857]
[1673464646174,0.02300218,17519.0,17518.0,0.30882866]
[1673464646416,0.016,17525.0,17519.0,0.3]
[1673464646417,0.3,17525.0,17519.0,0.3]
[1673464646659,0.3,17525.0,17520.0,2.75105399]
[1673464646918,1.01805883,17525.0,17522.0,0.3]
[1673464647212,1.01805883,17525.0,17523.0,0.23767789]
[1673464647426,1.01905883,17525.0,17523.0,0.23767789]
[1673464647666,0.301,17525.0,17521.0,1.09303946]
[1673464647925,1.12229069,17525.0,17522.0,0.56940947]
[1673464648188,0.90226966,17525.0,17522.0,0.56940947]
[1673464648467,0.301,17525.0,17523.0,0.54499099]
[1673464648732,2.9384,17527.0,17524.0,0.69992604]
[1673464648733,3.71956029,17527.0,17524.0,0.69992604]
[1673464648977,0.001,17525.0,17524.0,0.93760393]
[1673464649224,0.001,17525.0,17524.0,0.69992604]
[1673464649475,0.001,17525.0,17524.0,1.57057104]
[1673464649735,0.001,17525.0,17524.0,1.35747004]
[1673464650009,0.001,17525.0,17524.0,0.99992604]
[1673464651028,0.002,17525.0,17524.0,1.11392604]
[1673464651770,0.002,17525.0,17524.0,1.47147004]
[1673464652541,0.002,17525.0,17524.0,0.771544]
[1673464652783,0.002,17525.0,17524.0,1.46223207]
[1673464653041,0.002,17525.0,17524.0,3.04651152]
[1673464653298,0.002,17525.0,17524.0,1.642189]
[1673464653566,0.002,17525.0,17524.0,2.84664532]
[1673464653816,0.002,17525.0,17524.0,2.54664532]
[1673464654072,0.002,17525.0,17524.0,1.61845632]
[1673464654321,0.002,17525.0,17524.0,1.79681437]
[1673464654587,0.002,17525.0,17524.0,1.85435837]
[1673464654839,0.002,17525.0,17524.0,1.49681437]
[1673464657112,0.002,17525.0,17524.0,2.06745937]
[1673464658154,0.002,17525.0,17524.0,1.19681437]
[1673464658425,0.002,17525.0,17524.0,0.62616937]
[1673464658723,0.20855,17525.0,17524.0,0.62616937]
[1673464658931,0.002,17525.0,17524.0,0.62616937]
[1673464659184,0.20855,17525.0,17524.0,0.114]
[1673464659445,0.78045899,17525.0,17524.0,0.114]
[1673464659710,0.57390899,17525.0,17524.0,0.114]
[1673464660486,1.25252199,17525.0,17524.0,0.114]
[1673464660747,1.82313499,17525.0,17524.0,0.114]
[1673464661523,1.93073499,17525.0,17524.0,0.114]
[1673464661776,2.23073499,17525.0,17524.0,0.114]
[1673464663299,0.3,17524.0,17522.0,0.62773873]
[1673464663560,0.1086,17523.0,17522.0,0.62773873]
[1673464664584,0.1086,17523.0,17522.0,0.76773873]
[1673464665120,0.1086,17523.0,17522.0,0.14]
[1673464665606,0.2172,17523.0,17521.0,0.04899568]
[1673464665852,0.1086,17523.0,17522.0,0.14]
[1673464666102,0.1106,17523.0,17522.0,0.14]
[1673464666353,0.002,17523.0,17522.0,0.14]
[1673464666620,0.002,17523.0,17522.0,1.35266116]
[1673464667125,0.002,17523.0,17522.0,1.65266116]
[1673464669905,0.00189017,17523.0,17522.0,2.22337216]
[1673464670671,0.570565,17527.0,17523.0,0.88670884]
[1673464670922,0.108,17525.0,17524.0,0.23767789]
[1673464671174,0.108,17525.0,17523.0,1.45738184]
[1673464671680,0.108,17525.0,17523.0,1.15738184]
[1673464672418,0.108,17525.0,17523.0,1.72805984]
[1673464672930,0.109,17525.0,17524.0,0.052]
[1673464673187,0.109,17525.0,17523.0,1.72803984]
[1673464673188,0.108,17525.0,17523.0,1.72803984]
[1673464673434,0.11,17525.0,17523.0,1.28236284]
[1673464673683,0.108,17525.0,17523.0,1.15736284]
[1673464673940,0.108,17525.0,17524.0,0.052]
[1673464674205,0.95426776,17526.0,17523.0,1.72802184]
[1673464674206,0.65426776,17526.0,17523.0,1.72802184]
[1673464674459,0.65426776,17526.0,17523.0,1.85302184]
[1673464674709,0.002,17525.0,17524.0,0.60108928]
[1673464674974,0.002,17525.0,17524.0,0.90108928]
[1673464675533,0.002,17525.0,17524.0,1.47173428]
[1673464675762,0.002,17525.0,17524.0,2.09437928]
[1673464675763,0.003,17525.0,17524.0,2.09437928]
[1673464676018,0.003,17525.0,17524.0,3.02256828]
[1673464676275,0.003,17525.0,17524.0,2.66502428]
[1673464677045,0.66684849,17528.0,17525.0,0.90603529]
[1673464677297,0.66684849,17528.0,17525.0,2.28489918]
[1673464677803,0.66684849,17528.0,17525.0,1.74722129]
[1673464678059,0.81413537,17527.0,17525.0,1.17663629]
[1673464678304,0.81413537,17527.0,17525.0,1.17678229]
[1673464678554,0.81413537,17527.0,17525.0,1.18078229]
[1673464678807,0.81413537,17527.0,17525.0,1.17678229]
[1673464679058,0.82713537,17527.0,17525.0,1.17678229]
[1673464679560,0.82713537,17527.0,17525.0,0.60603529]
[1673464679833,0.93483537,17527.0,17525.0,0.60603529]
[1673464680605,0.93483537,17527.0,17524.0,1.18895596]
[1673464680606,0.80569453,17527.0,17526.0,0.61347384]
[1673464681107,0.29155916,17527.0,17526.0,0.61347384]
[1673464681374,0.1077,17527.0,17526.0,0.61347384]
[1673464681640,0.026,17527.0,17526.0,0.61847384]
[1673464682140,0.026,17527.0,17526.0,1.18905384]
[1673464682641,0.026,17527.0,17526.0,2.11717784]
[1673464682894,0.026,17527.0,17526.0,2.05963384]
[1673464683147,0.026,17527.0,17526.0,1.48905384]
[1673464683663,0.026,17527.0,17526.0,1.84659784]
[1673464683910,0.026,17527.0,17526.0,1.48905384]
[1673464684451,0.026,17527.0,17526.0,0.91847384]
[1673464684958,0.026,17527.0,17526.0,1.95692253]
[1673464685218,0.0133,17527.0,17526.0,2.6974854]
[1673464685497,0.0133,17527.0,17526.0,3.4112727]
[1673464685993,0.0133,17527.0,17526.0,4.39969096]
[1673464686248,0.02369644,17529.0,17527.0,0.31229514]
[1673464686508,0.02369644,17529.0,17528.0,2.79174768]
[1673464686791,0.4263391,17535.0,17529.0,0.3]
[1673464687049,0.91238264,17536.0,17532.0,0.3]
[1673464687050,0.81999351,17536.0,17532.0,0.3]
[1673464687287,0.677713,17535.0,17533.0,0.23767789]
[1673464687805,0.10554744,17535.0,17533.0,0.23767789]
[1673464688303,1.23428362,17536.0,17533.0,0.23767789]
[1673464688564,1.23428362,17536.0,17533.0,0.37867789]
[1673464688829,0.51475408,17535.0,17533.0,0.84640082]
[1673464689077,1.38504808,17535.0,17533.0,0.84640082]
[1673464689360,1.08504808,17535.0,17533.0,0.84640082]
[1673464689591,0.51475408,17535.0,17534.0,0.63858498]
[1673464689845,1.548754,17536.0,17534.0,0.61552624]
[1673464690848,1.248754,17536.0,17534.0,0.75452624]
[1673464691102,0.678478,17536.0,17534.0,0.75452624]
[1673464691616,0.1082,17536.0,17534.0,0.75452624]
[1673464691868,0.69258015,17535.0,17534.0,0.139]